[Event "Championnat du monde jeunes U12F"]
[Date "2024.11.25"]
[White "Telyuk, Anastasiya"]
[Black "Ribreau, Anna"]
[WhiteElo "1603"]
[BlackElo "1726"]
[Round "10.26"]
[Result "1-0"]
[TimeControl "5400+30"]

1. e4 {[%clk 1:30:59]} 1... d6 {[%clk 1:26:51]} 2. d4 {[%clk 1:31:22]} 2... Nf6
{[%clk 1:26:49]} 3. Nc3 {[%clk 1:31:43]} 3... e5 {[%clk 1:26:26]} 4. Nf3 {[%clk
1:32:00]} 4... Nbd7 {[%clk 1:25:54]} 5. Bc4 {[%clk 1:31:47]} 5... Be7 {[%clk
1:25:32]} 6. O-O {[%clk 1:32:00]} 6... O-O {[%clk 1:24:56]} 7. a4 {[%clk
1:27:57]} 7... c6 {[%clk 1:23:55]} 8. Re1 {[%clk 1:27:56]} 8... b6 {[%clk
1:22:54]} 9. h3 {[%clk 1:24:54]} 9... Bb7 {[%clk 1:20:52]} 10. Be3 {[%clk
1:20:11]} 10... a6 {[%clk 1:16:06]} 11. d5 {[%clk 1:09:03]} 11... cxd5 {[%clk
1:14:58]} 12. Bxd5 {[%clk 1:06:39]} 12... Bxd5 {[%clk 1:13:06]} 13. Nxd5 {[%clk
1:04:37]} 13... Nxe4 {[%clk 1:02:57]} 14. Bxb6 {[%clk 1:02:30]} 14... Nxb6
{[%clk 1:03:16]} 15. Nxe7+ {[%clk 1:02:32]} 15... Qxe7 {[%clk 1:03:32]} 16. Rxe4
{[%clk 1:02:28]} 16... f5 {[%clk 1:01:42]} 17. Rb4 {[%clk 1:01:34]} 17... Rab8
{[%clk 1:00:32]} 18. a5 {[%clk 1:01:10]} 18... Nd7 {[%clk 1:00:08]} 19. Qd5+
{[%clk 0:59:24]} 19... Kh8 {[%clk 0:58:49]} 20. Rxb8 {[%clk 0:58:54]} 20... Rxb8
{[%clk 0:41:25]} 21. Rd1 {[%clk 0:58:05]} 21... Nc5 {[%clk 0:35:53]} 22. Qxd6
{[%clk 0:57:07]} 22... Qxd6 {[%clk 0:36:07]} 23. Rxd6 {[%clk 0:57:30]} 23... e4
{[%clk 0:36:17]} 24. Nd4 {[%clk 0:56:54]} 24... g6 {[%clk 0:36:30]} 25. Rc6
{[%clk 0:56:45]} 25... Na4 {[%clk 0:34:22]} 26. b3 {[%clk 0:56:57]} 26... Nb2
{[%clk 0:30:51]} 27. Rxa6 {[%clk 0:57:14]} 27... Nd1 {[%clk 0:29:52]} 28. Rb6
{[%clk 0:57:23]} 28... Ra8 {[%clk 0:29:03]} 29. a6 {[%clk 0:56:10]} 29... Nc3
{[%clk 0:29:06]} 30. Nc6 {[%clk 0:54:58]} 30... Nd5 {[%clk 0:27:57]} 31. Rb8+
{[%clk 0:55:14]} 31... Rxb8 {[%clk 0:28:10]} 32. Nxb8 {[%clk 0:55:42]} 32... Nc7
{[%clk 0:28:24]} 33. a7 {[%clk 0:56:01]} 33... Kg8 {[%clk 0:27:51]} 34. Nd7
{[%clk 0:56:22]} 34... Na8 {[%clk 0:27:53]} 35. c4 {[%clk 0:56:39]} 35... Kf7
{[%clk 0:28:13]} 36. c5 {[%clk 0:57:04]} 36... Ke7 {[%clk 0:27:40]} 37. Nb6
{[%clk 0:57:29]} 37... Kd8 {[%clk 0:27:46]} 38. Nxa8 {[%clk 0:57:54]} 38... Kc8
{[%clk 0:28:11]} 39. Nb6+ {[%clk 0:58:17]} 1-0

[Variant "Standard"]
[Site "Europe Echecs"]

[Event "Championnat du monde jeunes U12F"]
[Date "2024.11.25"]
[White "Liang, Candice"]
[Black "Oksanen, Maria"]
[WhiteElo "1551"]
[BlackElo "1725"]
[Round "10.27"]
[Result "1/2-1/2"]
[TimeControl "5400+30"]

1. d4 {[%clk 1:30:58]} 1... Nf6 {[%clk 1:30:38]} 2. c4 {[%clk 1:30:48]} 2... g6
{[%clk 1:31:02]} 3. g3 {[%clk 1:31:13]} 3... d5 {[%clk 1:31:21]} 4. cxd5 {[%clk
1:31:36]} 4... Nxd5 {[%clk 1:31:45]} 5. Nf3 {[%clk 1:31:51]} 5... Bg7 {[%clk
1:32:07]} 6. Bg2 {[%clk 1:32:15]} 6... O-O {[%clk 1:32:21]} 7. O-O {[%clk
1:32:28]} 7... Nc6 {[%clk 1:32:26]} 8. Nc3 {[%clk 1:32:26]} 8... Nb6 {[%clk
1:30:41]} 9. e3 {[%clk 1:32:38]} 9... Be6 {[%clk 1:29:14]} 10. b3 {[%clk
1:26:58]} 10... Bf5 {[%clk 1:27:27]} 11. Bb2 {[%clk 1:24:15]} 11... Nb4 {[%clk
1:27:03]} 12. e4 {[%clk 1:24:08]} 12... Bg4 {[%clk 1:27:27]} 13. d5 {[%clk
1:20:37]} 13... f5 {[%clk 1:17:45]} 14. h3 {[%clk 1:02:56]} 14... Bxf3 {[%clk
1:17:56]} 15. Bxf3 {[%clk 1:03:14]} 15... c6 {[%clk 1:17:18]} 16. a3 {[%clk
0:59:19]} 16... fxe4 {[%clk 1:17:05]} 17. Bxe4 {[%clk 0:54:44]} 17... N4xd5
{[%clk 1:15:58]} 18. Qc2 {[%clk 0:53:33]} 18... Nxc3 {[%clk 1:14:02]} 19. Bxc3
{[%clk 0:52:46]} 19... Bxc3 {[%clk 1:13:38]} 20. Qxc3 {[%clk 0:53:08]} 20... Qd6
{[%clk 1:13:46]} 21. b4 {[%clk 0:51:20]} 21... Qf6 {[%clk 1:13:05]} 22. Qb3+
{[%clk 0:50:23]} 22... Kg7 {[%clk 1:12:59]} 23. b5 {[%clk 0:48:40]} 23... cxb5
{[%clk 1:11:03]} 24. Qxb5 {[%clk 0:47:21]} 24... Rab8 {[%clk 1:01:19]} 25. Rac1
{[%clk 0:45:14]} 25... Rfc8 {[%clk 0:57:26]} 26. Rxc8 {[%clk 0:43:45]} 26...
Nxc8 {[%clk 0:57:46]} 27. Qd7 {[%clk 0:39:37]} 27... Qd6 {[%clk 0:50:39]} 28.
Rd1 {[%clk 0:38:29]} 28... Qxd7 {[%clk 0:50:26]} 29. Rxd7 {[%clk 0:38:49]} 29...
Nd6 {[%clk 0:50:48]} 30. Bd5 {[%clk 0:37:07]} 30... Kf6 {[%clk 0:50:00]} 31. f4
{[%clk 0:36:40]} 31... a6 {[%clk 0:46:35]} 32. g4 {[%clk 0:35:00]} 32... Nb5
{[%clk 0:37:47]} 33. Rxb7 {[%clk 0:33:38]} 33... Rxb7 {[%clk 0:38:03]} 34. Bxb7
{[%clk 0:34:02]} 34... Nxa3 {[%clk 0:38:25]} 35. Bxa6 {[%clk 0:34:22]} 35... g5
{[%clk 0:35:58]} 36. fxg5+ {[%clk 0:33:06]} 36... Kxg5 {[%clk 0:36:19]} 37. Bd3
{[%clk 0:33:27]} 37... h6 {[%clk 0:36:41]} 38. Kg2 {[%clk 0:31:49]} 38... Kf4
{[%clk 0:36:52]} 39. Kf2 {[%clk 0:31:58]} 39... e5 {[%clk 0:37:00]} 40. Ke2
{[%clk 0:30:40]} 40... Kg3 {[%clk 0:36:13]} 41. Bf5 {[%clk 0:30:06]} 41... Nb5
{[%clk 0:36:09]} 42. Ke3 {[%clk 0:30:08]} 42... Nd6 {[%clk 0:35:47]} 43. Be6
{[%clk 0:29:26]} 43... Kh4 {[%clk 0:34:18]} 44. Kf3 {[%clk 0:28:55]} 44... h5
{[%clk 0:34:18]} 45. gxh5 {[%clk 0:28:38]} 45... Kxh5 {[%clk 0:34:40]} 46. Bd7
{[%clk 0:27:02]} 1/2-1/2

[Variant "Standard"]
[Site "Europe Echecs"]

[Event "Championnat du monde jeunes U12F"]
[Date "2024.11.25"]
[White "Chovanec, Alice"]
[Black "Potikha, Shelley"]
[WhiteElo "1694"]
[BlackElo "1561"]
[Round "10.28"]
[Result "1-0"]
[TimeControl "5400+30"]

1. d4 {[%clk 1:30:56]} 1... e6 {[%clk 1:30:52]} 2. c4 {[%clk 1:31:15]} 2... Nf6
{[%clk 1:31:04]} 3. Nc3 {[%clk 1:31:33]} 3... Bb4 {[%clk 1:31:16]} 4. f3 {[%clk
1:31:44]} 4... b5 {[%clk 1:31:13]} 5. Bg5 {[%clk 1:23:31]} 5... h6 {[%clk
1:16:40]} 6. Bxf6 {[%clk 1:17:49]} 6... Qxf6 {[%clk 1:16:40]} 7. e4 {[%clk
1:16:32]} 7... bxc4 {[%clk 1:11:09]} 8. Bxc4 {[%clk 1:15:17]} 8... c5 {[%clk
1:09:27]} 9. Ne2 {[%clk 1:10:36]} 9... Ba6 {[%clk 1:01:29]} 10. Bxa6 {[%clk
1:09:56]} 10... Nxa6 {[%clk 1:01:43]} 11. a3 {[%clk 1:08:26]} 11... Bxc3+ {[%clk
0:59:31]} 12. bxc3 {[%clk 1:08:20]} 12... cxd4 {[%clk 0:57:08]} 13. cxd4 {[%clk
1:08:17]} 13... O-O {[%clk 0:56:54]} 14. O-O {[%clk 1:08:28]} 14... d5 {[%clk
0:54:50]} 15. Qa4 {[%clk 1:07:44]} 15... Nb8 {[%clk 0:53:41]} 16. e5 {[%clk
1:06:25]} 16... Qe7 {[%clk 0:52:24]} 17. Rfc1 {[%clk 1:05:09]} 17... Qd7 {[%clk
0:51:38]} 18. Qc2 {[%clk 1:03:08]} 18... Na6 {[%clk 0:50:22]} 19. Qc6 {[%clk
1:02:21]} 19... Qc8 {[%clk 0:43:54]} 20. Qd6 {[%clk 0:57:15]} 20... Qd8 {[%clk
0:39:45]} 21. Qxa6 {[%clk 0:57:32]} 21... Qg5 {[%clk 0:39:41]} 22. f4 {[%clk
0:56:59]} 22... Qg4 {[%clk 0:38:59]} 23. h3 {[%clk 0:56:09]} 23... Qf5 {[%clk
0:39:02]} 24. Rab1 {[%clk 0:52:38]} 24... Qe4 {[%clk 0:37:52]} 25. Rb2 {[%clk
0:46:24]} 25... Rab8 {[%clk 0:36:50]} 26. Rcc2 {[%clk 0:44:55]} 26... Rb6 {[%clk
0:33:30]} 27. Qxa7 {[%clk 0:40:23]} 27... Rxb2 {[%clk 0:33:22]} 28. Rxb2 {[%clk
0:40:44]} 28... Qd3 {[%clk 0:33:06]} 29. Qa4 {[%clk 0:37:40]} 29... Rc8 {[%clk
0:32:51]} 30. Qb3 {[%clk 0:37:23]} 1-0

[Variant "Standard"]
[Site "Europe Echecs"]

[Event "Championnat du monde jeunes U12F"]
[Date "2024.11.25"]
[White "Moscovitch, Shelly"]
[Black "Tursunalieva, Nurelina"]
[WhiteElo "1552"]
[BlackElo "1701"]
[Round "10.29"]
[Result "0-1"]
[TimeControl "5400+30"]

1. e4 {[%clk 1:30:31]} 1... c5 {[%clk 1:30:53]} 2. Nf3 {[%clk 1:30:21]} 2... d6
{[%clk 1:31:20]} 3. c3 {[%clk 1:29:46]} 3... Nf6 {[%clk 1:31:42]} 4. Be2 {[%clk
1:29:05]} 4... Nbd7 {[%clk 1:28:59]} 5. Qc2 {[%clk 1:26:43]} 5... Qc7 {[%clk
1:29:10]} 6. O-O {[%clk 1:24:28]} 6... g6 {[%clk 1:29:17]} 7. d3 {[%clk
1:20:44]} 7... Bg7 {[%clk 1:29:03]} 8. h3 {[%clk 1:19:10]} 8... O-O {[%clk
1:28:28]} 9. Bf4 {[%clk 1:15:39]} 9... b6 {[%clk 1:27:15]} 10. Nbd2 {[%clk
1:12:29]} 10... Bb7 {[%clk 1:27:27]} 11. Rac1 {[%clk 1:10:44]} 11... Rac8 {[%clk
1:27:34]} 12. Rfe1 {[%clk 1:07:56]} 12... a6 {[%clk 1:25:53]} 13. Nf1 {[%clk
1:05:47]} 13... c4 {[%clk 1:24:04]} 14. Ng3 {[%clk 0:57:35]} 14... e5 {[%clk
1:16:12]} 15. Be3 {[%clk 0:54:27]} 15... d5 {[%clk 1:12:31]} 16. exd5 {[%clk
0:51:11]} 16... Nxd5 {[%clk 1:12:39]} 17. Qd2 {[%clk 0:43:46]} 17... Nxe3 {[%clk
1:05:53]} 18. Qxe3 {[%clk 0:42:21]} 18... f5 {[%clk 1:05:42]} 19. Qd2 {[%clk
0:35:14]} 19... cxd3 {[%clk 1:05:34]} 20. Bd1 {[%clk 0:32:01]} 20... e4 {[%clk
1:05:27]} 21. Bb3+ {[%clk 0:30:05]} 21... Kh8 {[%clk 1:05:40]} 22. Nd4 {[%clk
0:29:50]} 22... Nc5 {[%clk 1:04:56]} 23. Nf1 {[%clk 0:23:26]} 23... Qd6 {[%clk
0:57:31]} 24. Red1 {[%clk 0:15:24]} 24... Nxb3 {[%clk 0:53:30]} 25. Nxb3 {[%clk
0:14:18]} 25... f4 {[%clk 0:52:57]} 26. Kh1 {[%clk 0:11:05]} 26... Qd5 {[%clk
0:50:00]} 27. Re1 {[%clk 0:08:17]} 27... Qf5 {[%clk 0:47:59]} 28. Kh2 {[%clk
0:05:43]} 28... Be5 {[%clk 0:46:10]} 29. Red1 {[%clk 0:02:48]} 29... Rcd8 {[%clk
0:45:21]} 30. Nd4 {[%clk 0:01:56]} 30... Qf6 {[%clk 0:43:03]} 31. Kh1 {[%clk
0:01:22]} 31... Rd6 {[%clk 0:42:42]} 32. Nb3 {[%clk 0:01:01]} 32... e3 {[%clk
0:41:12]} 33. fxe3 {[%clk 0:00:53]} 33... f3 {[%clk 0:41:31]} 34. Kg1 {[%clk
0:00:34]} 34... f2+ {[%clk 0:41:33]} 35. Kh1 {[%clk 0:00:50]} 35... Bxg2+ {[%clk
0:41:56]} 0-1

[Variant "Standard"]
[Site "Europe Echecs"]

[Event "Championnat du monde jeunes U12F"]
[Date "2024.11.25"]
[White "Huang, Lucia"]
[Black "Laurincova, Timea"]
[WhiteElo "1621"]
[BlackElo "1549"]
[Round "10.30"]
[Result "1-0"]
[TimeControl "5400+30"]

1. e4 {[%clk 1:30:58]} 1... c5 {[%clk 1:30:55]} 2. Nc3 {[%clk 1:31:23]} 2... Nc6
{[%clk 1:31:11]} 3. f4 {[%clk 1:31:47]} 3... d6 {[%clk 1:31:20]} 4. Bc4 {[%clk
1:32:01]} 4... g6 {[%clk 1:31:13]} 5. Nf3 {[%clk 1:32:18]} 5... Bg7 {[%clk
1:30:38]} 6. a3 {[%clk 1:31:18]} 6... Nf6 {[%clk 1:30:22]} 7. O-O {[%clk
1:30:22]} 7... O-O {[%clk 1:30:39]} 8. d3 Bd7 {[%clk 1:30:15]} 9. Qe1 {[%clk
1:28:48]} 9... Qc7 {[%clk 1:27:24]} 10. Ba2 {[%clk 1:19:28]} 10... Rab8 {[%clk
1:25:32]} 11. Qh4 {[%clk 1:13:14]} 11... b5 {[%clk 1:21:34]} 12. f5 {[%clk
1:10:44]} 12... a5 {[%clk 1:17:29]} 13. fxg6 {[%clk 1:09:57]} 13... hxg6 {[%clk
1:17:40]} 14. Ng5 {[%clk 1:11:35]} 14... Nh5 {[%clk 1:10:41]} 15. Bxf7+ {[%clk
1:07:04]} 15... Kh8 {[%clk 1:10:35]} 16. Nd5 {[%clk 1:06:15]} 16... Qd8 {[%clk
1:08:22]} 17. Nf4 {[%clk 1:06:08]} 17... Ne5 {[%clk 1:00:53]} 18. Nxg6+ {[%clk
1:06:24]} 18... Nxg6 {[%clk 0:59:06]} 19. Qxh5+ {[%clk 1:06:48]} 19... Bh6
{[%clk 0:59:25]} 20. Qxh6# {[%clk 1:07:11]} 1-0

[Variant "Standard"]
[Site "Europe Echecs"]

[Event "Championnat du monde jeunes U12F"]
[Date "2024.11.25"]
[White "Busuioc, Amelie"]
[Black "Saharkar, Sharvari"]
[WhiteElo "1581"]
[BlackElo "1581"]
[Round "10.31"]
[Result "1-0"]
[TimeControl "5400+30"]

1. e4 {[%clk 1:30:54]} 1... e5 {[%clk 1:30:54]} 2. d4 {[%clk 1:31:18]} 2... exd4
{[%clk 1:29:34]} 3. Qxd4 {[%clk 1:31:40]} 3... Nc6 {[%clk 1:28:26]} 4. Qe3
{[%clk 1:31:56]} 4... Nf6 {[%clk 1:27:21]} 5. Nc3 {[%clk 1:32:17]} 5... Bd6
{[%clk 1:26:55]} 6. Nf3 {[%clk 1:30:21]} 6... O-O {[%clk 1:24:54]} 7. Be2 {[%clk
1:29:48]} 7... Re8 {[%clk 1:21:55]} 8. Bd2 {[%clk 1:28:21]} 8... b6 {[%clk
1:20:57]} 9. O-O-O {[%clk 1:27:33]} 9... Ng4 {[%clk 1:17:52]} 10. Qg5 {[%clk
1:21:40]} 10... Nxf2 {[%clk 1:14:59]} 11. Bc4 {[%clk 1:18:36]} 11... Nxh1 {[%clk
1:13:07]} 12. Qh5 {[%clk 1:02:20]} 12... g6 {[%clk 1:09:40]} 13. Bxf7+ {[%clk
0:37:09]} 13... Kh8 {[%clk 0:49:38]} 14. Bxg6 {[%clk 0:35:51]} 14... Re7 {[%clk
0:45:11]} 15. Bg5 {[%clk 0:31:17]} 15... Qf8 {[%clk 0:39:03]} 16. Bxe7 {[%clk
0:28:53]} 16... Qxe7 {[%clk 0:38:50]} 17. Nd5 {[%clk 0:27:34]} 17... Qg7 {[%clk
0:36:58]} 18. Bf5 {[%clk 0:23:56]} 18... Bb7 {[%clk 0:31:45]} 19. Ng5 {[%clk
0:22:03]} 19... Ne7 {[%clk 0:30:17]} 20. Nxe7 {[%clk 0:16:51]} 20... Bxe7 {[%clk
0:28:58]} 21. Nxh7 {[%clk 0:14:30]} 21... Kg8 {[%clk 0:24:53]} 22. Rxd7 {[%clk
0:11:58]} 22... Qf7 {[%clk 0:23:29]} 23. Qh6 {[%clk 0:08:21]} 23... Rd8 {[%clk
0:16:50]} 24. Rxd8+ {[%clk 0:08:13]} 24... Bxd8 {[%clk 0:16:55]} 25. Be6 {[%clk
0:08:25]} 25... Bxe4 {[%clk 0:16:46]} 26. Bxf7+ {[%clk 0:08:21]} 26... Kxf7
{[%clk 0:16:51]} 27. Qf4+ {[%clk 0:08:30]} 27... Kg7 {[%clk 0:16:51]} 28. Qxe4
{[%clk 0:08:47]} 28... Nf2 {[%clk 0:16:39]} 29. Qd4+ {[%clk 0:08:56]} 29... Kxh7
{[%clk 0:16:51]} 30. Qxf2 {[%clk 0:09:15]} 30... Bg5+ {[%clk 0:17:07]} 31. Kd1
{[%clk 0:09:27]} 31... c5 {[%clk 0:17:07]} 32. Qf7+ {[%clk 0:09:31]} 32... Kh6
{[%clk 0:17:22]} 33. Qxa7 {[%clk 0:09:56]} 33... Bd8 {[%clk 0:17:27]} 34. Qb8
{[%clk 0:09:55]} 34... Kg7 {[%clk 0:17:22]} 35. Qxd8 {[%clk 0:10:18]} 35... b5
{[%clk 0:17:40]} 36. Qd6 {[%clk 0:10:31]} 36... Kf7 {[%clk 0:17:50]} 37. h4
{[%clk 0:10:41]} 37... Ke8 {[%clk 0:18:07]} 38. Qc7 {[%clk 0:11:00]} 38... b4
{[%clk 0:18:25]} 39. Qg7 {[%clk 0:11:16]} 39... c4 {[%clk 0:18:42]} 40. h5
{[%clk 0:11:40]} 40... b3 {[%clk 0:19:06]} 41. axb3 {[%clk 0:11:58]} 41... cxb3
{[%clk 0:19:29]} 42. h6 {[%clk 0:12:21]} 42... bxc2+ {[%clk 0:19:52]} 43. Kxc2
{[%clk 0:12:41]} 43... Kd8 {[%clk 0:20:16]} 44. h7 {[%clk 0:13:01]} 44... Ke8
1-0

[Variant "Standard"]
[Site "Europe Echecs"]

[Event "Championnat du monde jeunes U12F"]
[Date "2024.11.25"]
[White "Jacome Revelo, Daniela Alexandra"]
[Black "Budhram, Kaylee"]
[WhiteElo "1764"]
[BlackElo "1614"]
[Round "10.32"]
[Result "1/2-1/2"]
[TimeControl "5400+30"]

1. e4 {[%clk 1:30:56]} 1... c6 {[%clk 1:30:55]} 2. Nc3 {[%clk 1:31:07]} 2... d5
{[%clk 1:31:09]} 3. Nf3 {[%clk 1:31:14]} 3... dxe4 {[%clk 1:31:23]} 4. Nxe4
{[%clk 1:30:43]} 4... Nf6 {[%clk 1:30:51]} 5. Qe2 {[%clk 1:29:28]} 5... Nxe4
{[%clk 1:29:10]} 6. Qxe4 {[%clk 1:29:45]} 6... e6 {[%clk 1:29:03]} 7. Bc4 {[%clk
1:28:50]} 7... Nd7 {[%clk 1:26:09]} 8. d4 {[%clk 1:20:32]} 8... Nf6 {[%clk
1:23:22]} 9. Qe2 {[%clk 1:20:46]} 9... b5 {[%clk 1:19:18]} 10. Bb3 {[%clk
1:17:47]} 10... a5 {[%clk 1:19:08]} 11. a4 {[%clk 1:17:48]} 11... Ba6 {[%clk
1:18:17]} 12. O-O {[%clk 1:13:00]} 12... Bd6 {[%clk 1:13:12]} 13. Ng5 {[%clk
1:05:45]} 13... b4 {[%clk 0:53:20]} 14. Bc4 {[%clk 1:05:39]} 14... Bxc4 {[%clk
0:53:38]} 15. Qxc4 {[%clk 1:06:02]} 15... Qc7 {[%clk 0:53:13]} 16. h3 {[%clk
1:00:38]} 16... O-O {[%clk 0:52:24]} 17. Qd3 {[%clk 0:54:00]} 17... h6 {[%clk
0:37:14]} 18. Ne4 {[%clk 0:54:05]} 18... Be7 {[%clk 0:35:07]} 19. Qf3 {[%clk
0:49:27]} 19... Nxe4 {[%clk 0:31:26]} 20. Qxe4 {[%clk 0:49:33]} 20... Bf6 {[%clk
0:31:18]} 21. f4 {[%clk 0:45:16]} 21... Rfd8 {[%clk 0:29:52]} 22. Be3 {[%clk
0:43:44]} 22... Rac8 {[%clk 0:21:34]} 23. Rad1 {[%clk 0:40:09]} 23... Qd7 {[%clk
0:19:30]} 24. Qf3 {[%clk 0:36:29]} 24... Qd5 {[%clk 0:18:03]} 25. Qg4 {[%clk
0:34:44]} 25... Qe4 {[%clk 0:12:41]} 26. Rd3 {[%clk 0:23:52]} 26... Bxd4 {[%clk
0:11:42]} 27. Bxd4 {[%clk 0:23:48]} 27... Rxd4 {[%clk 0:12:05]} 28. Rg3 {[%clk
0:23:48]} 28... g6 {[%clk 0:11:28]} 29. Qh5 {[%clk 0:22:25]} 29... Kh7 {[%clk
0:11:29]} 30. Qxa5 {[%clk 0:22:19]} 30... Rd5 {[%clk 0:09:10]} 31. Qa6 {[%clk
0:18:20]} 31... Rc7 {[%clk 0:09:09]} 32. Qb6 {[%clk 0:18:30]} 32... Qd4+ {[%clk
0:09:22]} 33. Qxd4 {[%clk 0:18:46]} 33... Rxd4 {[%clk 0:09:48]} 34. Rb3 {[%clk
0:17:50]} 34... Ra7 {[%clk 0:09:30]} 35. Ra1 {[%clk 0:13:53]} 35... Rxf4 {[%clk
0:09:42]} 36. a5 {[%clk 0:14:04]} 36... Rc4 {[%clk 0:02:54]} 37. a6 {[%clk
0:13:21]} 37... c5 {[%clk 0:01:30]} 38. c3 {[%clk 0:13:07]} 38... Kg7 {[%clk
0:01:21]} 39. Kf2 {[%clk 0:12:58]} 39... Kf6 {[%clk 0:00:54]} 40. Ke3 {[%clk
0:12:58]} 40... Ke5 {[%clk 0:01:15]} 41. g3 {[%clk 0:13:02]} 1/2-1/2

[Variant "Standard"]
[Site "Europe Echecs"]

[Event "Championnat du monde jeunes U12F"]
[Date "2024.11.25"]
[White "Ordonez Alarcon, Daniela"]
[Black "Xu, Melissa"]
[WhiteElo "1606"]
[BlackElo "1731"]
[Round "10.33"]
[Result "1-0"]
[TimeControl "5400+30"]

1. d4 {[%clk 1:30:55]} 1... d5 {[%clk 1:30:50]} 2. c4 {[%clk 1:31:19]} 2... e6
{[%clk 1:30:58]} 3. Nc3 {[%clk 1:31:43]} 3... Nf6 {[%clk 1:31:20]} 4. Nf3 {[%clk
1:32:07]} 4... Nbd7 {[%clk 1:31:19]} 5. e3 {[%clk 1:32:00]} 5... a6 {[%clk
1:31:18]} 6. Qc2 {[%clk 1:30:49]} 6... Be7 {[%clk 1:28:53]} 7. b3 {[%clk
1:29:34]} 7... b6 {[%clk 1:29:07]} 8. Be2 {[%clk 1:28:39]} 8... Bb7 {[%clk
1:27:33]} 9. O-O {[%clk 1:27:46]} 9... O-O {[%clk 1:25:48]} 10. Bb2 {[%clk
1:26:40]} 10... dxc4 {[%clk 1:19:41]} 11. bxc4 {[%clk 1:20:34]} 11... c5 {[%clk
1:17:31]} 12. Rad1 {[%clk 1:17:28]} 12... Qc7 {[%clk 1:11:06]} 13. d5 {[%clk
1:15:13]} 13... exd5 {[%clk 1:10:53]} 14. cxd5 {[%clk 1:15:36]} 14... h6 {[%clk
1:04:43]} 15. e4 {[%clk 1:09:27]} 15... Bd6 {[%clk 1:02:43]} 16. Rfe1 {[%clk
1:05:54]} 16... Rfe8 {[%clk 0:58:18]} 17. g3 {[%clk 0:58:56]} 17... b5 {[%clk
0:53:49]} 18. Bf1 {[%clk 0:57:18]} 18... Ng4 {[%clk 0:43:06]} 19. Nh4 {[%clk
0:53:40]} 19... c4 {[%clk 0:37:56]} 20. Ne2 {[%clk 0:43:26]} 20... Nc5 {[%clk
0:33:53]} 21. Nd4 {[%clk 0:41:32]} 21... Ne5 {[%clk 0:30:39]} 22. Nhf5 {[%clk
0:31:30]} 22... f6 {[%clk 0:26:37]} 23. Nxd6 {[%clk 0:30:17]} 23... Qxd6 {[%clk
0:26:52]} 24. Ba3 {[%clk 0:29:50]} 24... Qb6 {[%clk 0:25:51]} 25. Bxc5 {[%clk
0:29:04]} 25... Qxc5 {[%clk 0:26:15]} 26. Be2 {[%clk 0:24:28]} 26... Bc8 {[%clk
0:22:12]} 27. f4 {[%clk 0:24:00]} 27... Ng4 {[%clk 0:22:11]} 28. Bf1 {[%clk
0:21:08]} 28... h5 {[%clk 0:21:14]} 29. h3 {[%clk 0:19:38]} 29... Nh6 {[%clk
0:21:02]} 30. Bg2 {[%clk 0:20:02]} 30... Bb7 {[%clk 0:20:27]} 31. Kf1 {[%clk
0:19:52]} 31... Qa3 {[%clk 0:19:27]} 32. Ne2 {[%clk 0:17:13]} 32... Nf7 {[%clk
0:18:23]} 33. Rd2 {[%clk 0:16:31]} 33... Rad8 {[%clk 0:17:59]} 34. Qc3 {[%clk
0:16:30]} 34... Qc5 {[%clk 0:17:14]} 35. a3 {[%clk 0:16:21]} 35... f5 {[%clk
0:14:54]} 36. Nd4 {[%clk 0:13:53]} 36... Bc8 {[%clk 0:14:11]} 37. Nc6 {[%clk
0:12:42]} 37... Rd7 {[%clk 0:11:56]} 38. e5 {[%clk 0:12:33]} 38... Rc7 {[%clk
0:11:21]} 39. Nd4 {[%clk 0:09:39]} 39... Qe7 {[%clk 0:08:26]} 40. Rde2 {[%clk
0:08:44]} 40... Rc5 {[%clk 0:07:38]} 41. Nc6 {[%clk 0:06:24]} 41... Qb7 {[%clk
0:06:57]} 42. Rd1 {[%clk 0:05:13]} 42... Nd8 {[%clk 0:05:39]} 43. Nxd8 {[%clk
0:04:30]} 43... Rxd8 {[%clk 0:06:02]} 44. d6 {[%clk 0:04:45]} 44... Qf7 {[%clk
0:06:03]} 45. e6 {[%clk 0:03:47]} 45... Bxe6 {[%clk 0:05:57]} 46. Qa5 {[%clk
0:03:19]} 46... Rcc8 {[%clk 0:05:33]} 47. Rxe6 {[%clk 0:03:22]} 47... Qxe6
{[%clk 0:04:44]} 48. Bd5 {[%clk 0:03:49]} 48... Qxd5 {[%clk 0:05:01]} 49. Rxd5
{[%clk 0:04:15]} 49... c3 {[%clk 0:05:12]} 50. Rd1 {[%clk 0:03:52]} 50... c2
{[%clk 0:05:36]} 51. Rc1 {[%clk 0:04:12]} 51... Rxd6 {[%clk 0:05:59]} 52. Qe1
{[%clk 0:03:37]} 52... Kf7 {[%clk 0:06:03]} 53. Qe2 {[%clk 0:03:21]} 53... Rdc6
{[%clk 0:04:54]} 54. Qxh5+ g6 {[%clk 0:05:05]} 55. Qe2 {[%clk 0:03:58]} 55...
R8c7 {[%clk 0:05:01]} 56. Qd2 {[%clk 0:03:21]} 56... Rc5 {[%clk 0:04:51]} 57.
Qb4 {[%clk 0:02:47]} 57... Rc3 {[%clk 0:04:40]} 58. Kg2 {[%clk 0:02:10]} 58...
R7c4 {[%clk 0:04:23]} 59. Qb2 {[%clk 0:02:11]} 59... Rc5 {[%clk 0:04:17]} 60. g4
{[%clk 0:01:34]} 60... fxg4 {[%clk 0:04:10]} 61. hxg4 {[%clk 0:02:00]} 61... a5
{[%clk 0:03:46]} 62. f5 {[%clk 0:01:39]} 62... gxf5 {[%clk 0:03:34]} 63. gxf5
{[%clk 0:02:04]} 63... a4 {[%clk 0:03:33]} 64. f6 {[%clk 0:01:30]} 64... Kg6
{[%clk 0:02:33]} 65. Kf2 {[%clk 0:01:06]} 65... Rb3 {[%clk 0:02:29]} 66. Qa2
{[%clk 0:00:53]} 66... Rcc3 {[%clk 0:02:38]} 67. Rxc2 {[%clk 0:00:44]} 67...
Rf3+ {[%clk 0:02:16]} 68. Ke1 {[%clk 0:00:41]} 68... Rfe3+ {[%clk 0:02:11]} 69.
Re2 {[%clk 0:00:43]} 69... Rxa3 {[%clk 0:02:11]} 70. Qb1+ {[%clk 0:00:43]} 70...
Kxf6 {[%clk 0:02:18]} 71. Qxb5 {[%clk 0:00:59]} 71... Rxe2+ {[%clk 0:02:15]} 72.
Kxe2 {[%clk 0:01:21]} 72... Ra2+ {[%clk 0:02:33]} 73. Kd3 {[%clk 0:01:44]} 73...
a3 {[%clk 0:02:48]} 74. Qb1 {[%clk 0:01:49]} 74... Rh2 {[%clk 0:02:48]} 75. Qa1+
{[%clk 0:02:10]} 75... Ke6 {[%clk 0:02:58]} 76. Qe1+ {[%clk 0:02:15]} 76... Kd7
{[%clk 0:03:08]} 77. Qa1 {[%clk 0:01:55]} 77... Ke6 {[%clk 0:03:27]} 78. Kc3
{[%clk 0:02:09]} 78... Kd5 {[%clk 0:03:40]} 79. Qd1+ {[%clk 0:02:20]} 79... Ke6
{[%clk 0:03:36]} 80. Qg4+ {[%clk 0:02:23]} 80... Kd5 {[%clk 0:03:35]} 81. Qc4+
{[%clk 0:02:48]} 81... Kd6 {[%clk 0:03:23]} 82. Qf4+ Kd5 {[%clk 0:03:34]} 1-0

[Variant "Standard"]
[Site "Europe Echecs"]